Workbook

Sheet Доходы
H1: RESPPERSONS&=Зам.главы администрации - председатель комитета финансов=Малинина В. Н.&&:Главный бухгалтер=Азовкина О. В.
A2: ОТЧЕТ ОБ ИСПОЛНЕНИИ БЮДЖЕТА | F2: КОДЫ
E3: Форма по ОКУД | F3: 0503117
A4: на 01.01.2015 г. | E4: Дата | F4: 01.01.2015
E5: по ОКПО | F5: 46244612
A6: Наименование финансового органа: | B6: Комитет финансов администрации муниципального образования Тосненский район Ленинградской области | E6: Глава по БК | F6: 014
A7: Наименование публично-правового образования: | B7: Бюджет Никольского городского поселения Тосненского района Ленинградской области | E7: по ОКТМО
A8: Периодичность: годовая
A9: Единица измерения: руб. | E9: по ОКЕИ | F9: 383
A10: 1. Доходы бюджета
A11: Наименование показателя | B11: Код строки | C11: Код дохода по бюджетной классификации | D11: Утвержденные бюджетные назначения | E11: Исполнено | F11: Неисполненные назначения
A18: 1 | B18: 2 | C18: 3 | D18: 4 | E18: 5 | F18: 6
A19: Доходы бюджета - всего | B19: 010 | C19: X | D19: 151081336 | E19: 145993740.7 | F19: =IF(OR(D19="-",E19=D19),"-",D19-IF(E19="-",0,E19)) -> 5087595.27
A20: в том числе:
A21: НАЛОГОВЫЕ И НЕНАЛОГОВЫЕ ДОХОДЫ | B21: 010 | C21: 000 10000000000000 000 | D21: 102078231 | E21: 98515576.64 | F21: =IF(OR(D21="-",E21=D21),"-",D21-IF(E21="-",0,E21)) -> 3562654.36
A22: Налоги на прибыль, доходы | B22: 010 | C22: 182 10100000000000 000 | D22: 19040000 | E22: 15803706.89 | F22: 3236293.11
A23: Налог на доходы физических лиц | B23: 010 | C23: 182 10102000010000 110 | D23: 19040000 | E23: 15803706.89 | F23: 3236293.11
A24: Налог на доходы физических лиц с доходов, полученных физическими лицами, являющимися налоговыми резидентами Российской Федерации в виде дивидендов от долевого участия в деятельности организаций | B24: 010 | C24: 182 10102010010000 110 | D24: 19040000 | E24: 15549102.3 | F24: 3490897.7
A25: Налог на доходы физических лиц с доходов, полученных физическими лицами, являющимися налоговыми резидентами Российской Федерации в виде дивидендов от долевого участия в деятельности организаций (сумма платежа) | B25: 010 | C25: 182 10102010011000 110 | D25: - | E25: 15548631.64 | F25: -
A26: Налог на доходы физических лиц с доходов, полученных физическими лицами, являющимися налоговыми резидентами Российской Федерации в виде дивидендов от долевого участия в деятельности организаций (пени, проценты) | B26: 010 | C26: 182 10102010012000 110 | D26: - | E26: 35.66 | F26: -
A27: Налог на доходы физических лиц с доходов, полученных физическими лицами, являющимися налоговыми резидентами Российской Федерации в виде дивидендов от долевого участия в деятельности организаций (взыскания) | B27: 010 | C27: 182 10102010013000 110 | D27: - | E27: 435 | F27: -
A28: Налог на доходы физических лиц с доходов, облагаемых по налоговой ставке, установленной пунктом 1 статьи 224 Налогового кодекса Российской Федерации | B28: 010 | C28: 182 10102020010000 110 | D28: - | E28: 227560.47 | F28: -
A29: Налог на доходы физических лиц с доходов, полученных от осуществления деятельности физическими лицами, зарегистрированными в качестве индивидуальных предпринимателей, нотариусов, занимающихся частной практикой, адвокатов, учредивших адвокатские кабинеты и других лиц, занимающихся частной практикой в соответствии со статьей 227 Налогового кодекса Российской Федерации (сумма платежа) | B29: 010 | C29: 182 10102020011000 110 | D29: - | E29: 226492.47 | F29: -
A30: Налог на доходы физических лиц с доходов, полученных от осуществления деятельности физическими лицами, зарегистрированными в качестве индивидуальных предпринимателей, нотариусов, занимающихся частной практикой, адвокатов, учредивших адвокатские кабинеты и других лиц, занимающихся частной практикой в соответствии со статьей 227 Налогового кодекса Российской Федерации (пени, проценты) | B30: 010 | C30: 182 10102020012000 110 | D30: - | E30: 647.6 | F30: -
A31: Налог на доходы физических лиц с доходов, полученных от осуществления деятельности физическими лицами, зарегистрированными в качестве индивидуальных предпринимателей, нотариусов, занимающихся частной практикой, адвокатов, учредивших адвокатские кабинеты и других лиц, занимающихся частной практикой в соответствии со статьей 227 Налогового кодекса Российской Федерации (взыскания) | B31: 010 | C31: 182 10102020013000 110 | D31: - | E31: 420.4 | F31: -
A32: Налог на доходы физических лиц с доходов, полученных физическими лицами, не являющимися налоговыми резидентами Российской Федерации | B32: 010 | C32: 182 10102030010000 110 | D32: - | E32: 27044.12 | F32: -
A33: Налог на доходы физических лиц с доходов, полученных физическими лицами, не являющимися налоговыми резидентами Российской Федерации (сумма платежа) | B33: 010 | C33: 182 10102030011000 110 | D33: - | E33: 23448.99 | F33: -
A34: Налог на доходы физических лиц с доходов, полученных физическими лицами, не являющимися налоговыми резидентами Российской Федерации (пени, проценты) | B34: 010 | C34: 182 10102030012000 110 | D34: - | E34: 669.38 | F34: -
A35: Налог на доходы физических лиц с доходов, полученных физическими лицами, не являющимися налоговыми резидентами Российской Федерации (взыскания) | B35: 010 | C35: 182 10102030013000 110 | D35: - | E35: 2925.75 | F35: -
A36: Налоги на товары (работы, услуги), реализуемые на территории Российской Федерации | B36: 010 | C36: 000 10300000000000 000 | D36: 1898700 | E36: 1450402.5 | F36: 448297.5
A37: Акцизы по подакцизным товарам (продукции), производимым на территории Российской Федерации | B37: 010 | C37: 000 10302000010000 110 | D37: 1898700 | E37: 1450402.5 | F37: 448297.5
A38: Доходы от уплаты акцизов на дизельное топливо, зачисляемые в консолидированные бюджеты субъектов Российской Федерации | B38: 010 | C38: 100 10302230010000 110 | D38: 750000 | E38: 547406.71 | F38: 202593.29
A39: Доходы от уплаты акцизов на моторные масла для дизельных и (или) карбюраторных (инжекторных) двигателей, зачисляемые в консолидированные бюджеты субъектов Российской Федерации | B39: 010 | C39: 100 10302240010000 110 | D39: 15100 | E39: 12330.48 | F39: 2769.52
A40: Доходы от уплаты акцизов на автомобильный бензин, производимый на территории Российской Федерации, зачисляемые в консолидированные бюджеты субъектов Российской Федерации | B40: 010 | C40: 100 10302250010000 110 | D40: 1133575 | E40: 937770.69 | F40: 195804.31
A41: Доходы от уплаты акцизов на прямогонный бензин, производимый на территории Российской Федерации, зачисляемые в консолидированные бюджеты субъектов Российской Федерации | B41: 010 | C41: 100 10302260010000 110 | D41: 25 | E41: -47105.38 | F41: 47130.38
A42: Налоги на имущество | B42: 010 | C42: 182 10600000000000 000 | D42: 24040000 | E42: 26703331.63 | F42: -2663331.63
A43: Налог на имущество физических лиц | B43: 010 | C43: 182 10601000000000 110 | D43: 740000 | E43: 803084.12 | F43: -63084.12
A44: Налог на имущество физических лиц, взимаемый по ставкам, применяемым к объектам налогообложения, расположенным в границах поселений | B44: 010 | C44: 182 10601030100000 110 | D44: 740000 | E44: 803084.12 | F44: -63084.12
A45: Налог на имущество физических лиц, взимаемый по ставкам, применяемым к объектам налогообложения, расположенным в границах поселений (сумма платежа) | B45: 010 | C45: 182 10601030101000 110 | D45: - | E45: 778912.3 | F45: -
A46: Налог на имущество физических лиц, взимаемый по ставкам, применяемым к объектам налогообложения, расположенным в границах поселений (пени, проценты) | B46: 010 | C46: 182 10601030102000 110 | D46: - | E46: 24285.07 | F46: -
A47: Налог на имущество физических лиц, взимаемый по ставкам, применяемым к объектам налогообложения, расположенным в границах поселений (взыскания) | B47: 010 | C47: 182 10601030103000 110 | D47: - | E47: -113.25 | F47: -
A48: Транспортный налог | B48: 010 | C48: 182 10604000020000 110 | D48: 8300000 | E48: 9730600.42 | F48: -1430600.42
A49: Транспортный налог с организаций | B49: 010 | C49: 182 10604011020000 110 | D49: 1300000 | E49: 1223802.01 | F49: 76197.99
A50: Транспортный налог с организаций (сумма платежа) | B50: 010 | C50: 182 10604011021000 110 | D50: - | E50: 1223318.07 | F50: -
A51: Транспортный налог с организаций (пени, проценты) | B51: 010 | C51: 182 10604011022000 110 | D51: - | E51: 483.94 | F51: -
A52: Транспортный налог с физических лиц | B52: 010 | C52: 182 10604012020000 110 | D52: 7000000 | E52: 8506798.41 | F52: -1506798.41
A53: Транспортный налог с физических лиц (сумма платежа) | B53: 010 | C53: 182 10604012021000 110 | D53: - | E53: 8300079.72 | F53: =IF(OR(D53="-",E53=D53),"-",D53-IF(E53="-",0,E53)) -> -
A54: Транспортный налог с физических лиц (пени, проценты) | B54: 010 | C54: 182 10604012022000 110 | D54: - | E54: 206718.69 | F54: -
A55: Земельный налог | B55: 010 | C55: 182 10606000000000 110 | D55: 15000000 | E55: 16169647.09 | F55: -1169647.09
A56: Земельный налог, взимаемый по ставкам, установленным в соответствии с подпунктом 1 пункта 1 статьи 394 Налогового кодекса Российской Федерации | B56: 010 | C56: 182 10606010000000 110 | D56: - | E56: 2776056.09 | F56: -
A57: Земельный налог, взимаемый по ставкам, установленным в соответствии с подпунктом 1 пункта 1 статьи 394 Налогового кодекса Российской Федерации и применяемым к объектам налогообложения, расположенным в границах поселений | B57: 010 | C57: 182 10606013100000 110 | D57: - | E57: 2776056.09 | F57: -
A58: Земельный налог, взимаемый по ставкам, установленным в соответствии с подпунктом 1 пункта 1 статьи 394 Налогового кодекса Российской Федерации и применяемым к объектам налогообложения, расположенным в границах поселений (сумма платежа) | B58: 010 | C58: 182 10606013101000 110 | D58: - | E58: 2761474.4 | F58: -
A59: Земельный налог, взимаемый по ставкам, установленным в соответствии с подпунктом 1 пункта 1 статьи 394 Налогового кодекса Российской Федерации и применяемым к объектам налогообложения, расположенным в границах поселений (пени, проценты) | B59: 010 | C59: 182 10606013102000 110 | D59: - | E59: 11581.69 | F59: -
A60: Земельный налог, взимаемый по ставкам, установленным в соответствии с подпунктом 1 пункта 1 статьи 394 Налогового кодекса Российской Федерации и применяемым к объектам налогообложения, расположенным в границах поселений (взыскания) | B60: 010 | C60: 182 10606013103000 110 | D60: - | E60: 3000 | F60: -
A61: Земельный налог, взимаемый по ставкам, установленным в соответствии с подпунктом 2 пункта 1 статьи 394 Налогового кодекса Российской Федерации | B61: 010 | C61: 182 10606020000000 110 | D61: 15000000 | E61: 13393591 | F61: 1606409
A62: Земельный налог, взимаемый по ставкам, установленным в соответствии с подпунктом 2 пункта 1 статьи 394 Налогового кодекса Российской Федерации и применяемым к объектам налогообложения, расположенным в границах поселений | B62: 010 | C62: 182 10606023100000 110 | D62: 15000000 | E62: 13393591 | F62: 1606409
A63: Земельный налог, взимаемый по ставкам, установленным в соответствии с подпунктом 2 пункта 1 статьи 394 Налогового кодекса Российской Федерации и применяемым к объектам налогообложения, расположенным в границах поселений (сумма платежа) | B63: 010 | C63: 182 10606023101000 110 | D63: - | E63: 13348161.14 | F63: -
A64: Земельный налог, взимаемый по ставкам, установленным в соответствии с подпунктом 2 пункта 1 статьи 394 Налогового кодекса Российской Федерации и применяемым к объектам налогообложения, расположенным в границах поселений (пени, проценты) | B64: 010 | C64: 182 10606023102000 110 | D64: - | E64: 38429.86 | F64: -
A65: Земельный налог, взимаемый по ставкам, установленным в соответствии с подпунктом 2 пункта 1 статьи 394 Налогового кодекса Российской Федерации и применяемым к объектам налогообложения, расположенным в границах поселений (взыскания) | B65: 010 | C65: 182 10606023103000 110 | D65: - | E65: 7000 | F65: -
A66: Задолженность и перерасчеты по отмененным налогам, сборам и иным обязательным платежам | B66: 010 | C66: 182 10900000000000 000 | D66: - | E66: -6591.82 | F66: -
A67: Налоги на имущество | B67: 010 | C67: 182 10904000000000 110 | D67: - | E67: -6591.82 | F67: -
A68: Земельный налог (по обязательствам, возникшим до 1 января 2006 года) | B68: 010 | C68: 182 10904050000000 110 | D68: - | E68: -6591.82 | F68: -
A69: Земельный налог (по обязательствам, возникшим до 1 января 2006 года), мобилизуемый на территориях поселений | B69: 010 | C69: 182 10904053100000 110 | D69: - | E69: -6591.82 | F69: -
A70: Земельный налог (по обязательствам, возникшим до 1 января 2006 года), мобилизуемый на территориях поселений (сумма платежа) | B70: 010 | C70: 182 10904053101000 110 | D70: - | E70: -6576.76 | F70: -
A71: Земельный налог (по обязательствам, возникшим до 1 января 2006 года), мобилизуемый на территориях поселений (пени, проценты) | B71: 010 | C71: 182 10904053102000 110 | D71: - | E71: -15.06 | F71: -
A72: Доходы от использования имущества, находящегося в государственной и муниципальной собственности | B72: 010 | C72: 000 11100000000000 000 | D72: 18725015 | E72: 14309598.21 | F72: 4415416.79
A73: Доходы, получаемые в виде арендной либо иной платы за передачу в возмездное пользование государственного и муниципального имущества (за исключением имущества автономных учреждений, а также имущества государственных и муниципальных унитарных предприятий, в том числе казенных) | B73: 010 | C73: 000 11105000000000 120 | D73: 11725015 | E73: 9557758.17 | F73: 2167256.83
A74: Доходы, получаемые в виде арендной платы за земельные участки, государственная собственность на которые не разграничена, а также средства от продажи права на заключение договоров аренды указанных земельных участков | B74: 010 | C74: 000 11105010000000 120 | D74: 6000000 | E74: 4525444.14 | F74: 1474555.86
A75: Доходы, получаемые в виде арендной платы за земельные участки, государственная собственность на которые не разграничена и которые расположены в границах поселений, а также средства от продажи права на заключение договоров аренды указанных земельных участков | B75: 010 | C75: 000 11105013100000 120 | D75: 6000000 | E75: 4525444.14 | F75: 1474555.86
A76: Доходы, получаемые в виде арендной платы за земельные участки, государственная собственность на которые не разграничена и которые расположены в границах поселений, а также средства от продажи права на заключение договоров аренды указанных земельных участков | B76: 010 | C76: 001 11105013100000 120 | D76: 6000000 | E76: 4422032.77 | F76: 1577967.23
A77: Доходы, получаемые в виде арендной платы за земельные участки, государственная собственность на которые не разграничена и которые расположены в границах поселений, а также средства от продажи права на заключение договоров аренды указанных земельных участков | B77: 010 | C77: 014 11105013100000 120 | D77: - | E77: 103411.37 | F77: -
A78: Доходы от сдачи в аренду имущества, находящегося в оперативном управлении органов государственной власти, органов местного самоуправления, государственных внебюджетных фондов и созданных ими учреждений (за исключением имущества автономных учреждений) | B78: 010 | C78: 014 11105030000000 120 | D78: 5725015 | E78: 5032314.03 | F78: 692700.97
A79: Доходы от сдачи в аренду имущества, находящегося в оперативном управлении органов управления поселений и созданных ими учреждений (за исключением имущества муниципальных автономных учреждений) | B79: 010 | C79: 014 11105035100000 120 | D79: 5725015 | E79: 5032314.03 | F79: 692700.97
A80: Прочие доходы от использования имущества и прав, находящихся в государственной и муниципальной собственности (за исключением имущества автономных учреждений, а также имущества государственных и муниципальных унитарных предприятий, в том числе казенных) | B80: 010 | C80: 014 11109000000000 120 | D80: 7000000 | E80: 4751840.04 | F80: 2248159.96
A81: Прочие поступления от использования имущества, находящегося в государственной и муниципальной собственности (за исключением имущества автономных учреждений, а также имущества государственных и муниципальных унитарных предприятий, в том числе казенных) | B81: 010 | C81: 014 11109040000000 120 | D81: 7000000 | E81: 4751840.04 | F81: 2248159.96
A82: Прочие поступления от использования имущества, находящегося в собственности поселений (за исключением имущества муниципальных автономных учреждений, а также имущества муниципальных унитарных предприятий, в том числе казенных) | B82: 010 | C82: 014 11109045100000 120 | D82: 7000000 | E82: 4751840.04 | F82: 2248159.96
A83: Доходы от оказания платных услуг и компенсации затрат государства | B83: 010 | C83: 014 11300000000000 000 | D83: 2323410 | E83: 2483888.26 | F83: -160478.26
A84: Доходы от оказания услуг или компенсации затрат государства | B84: 010 | C84: 014 11301000000000 000 | D84: 2278410 | E84: 2340398.8 | F84: -61988.8
A85: Доходы от оказания услуг или компенсации затрат государства | B85: 010 | C85: 014 11301000000000 130 | D85: 2278410 | E85: 2340398.8 | F85: =IF(OR(D85="-",E85=D85),"-",D85-IF(E85="-",0,E85)) -> -61988.8
A86: Прочие доходы от оказания платных услуг (работ) | B86: 010 | C86: 014 11301990000000 130 | D86: 2278410 | E86: 2340398.8 | F86: -61988.8
A87: Прочие доходы от оказания платных услуг (работ) получателями средств бюджетов поселений | B87: 010 | C87: 014 11301995100000 130 | D87: 2278410 | E87: 2340398.8 | F87: -61988.8
A88: Доходы от оказания платных услуг учреждениями (МКУК "Никольский ДК") | B88: 010 | C88: 014 11301995108121 130 | D88: 810000 | E88: 911480 | F88: -101480
A89: Доходы от оказания платных услуг учреждениями (МКУ "СДЦ "Надежда") | B89: 010 | C89: 014 11301995108122 130 | D89: 1468410 | E89: 1395718.8 | F89: 72691.2
A90: Лицензионные сборы | B90: 010 | C90: 014 11302000000000 130 | D90: 45000 | E90: 143489.46 | F90: -98489.46
A91: Прочие доходы от компенсации затрат государства | B91: 010 | C91: 014 11302990000000 130 | D91: 45000 | E91: 143489.46 | F91: -98489.46
A92: Прочие доходы от компенсации затрат бюджетов поселений | B92: 010 | C92: 014 11302995100000 130 | D92: 45000 | E92: 143489.46 | F92: -98489.46
A93: Доходы от продажи материальных и нематериальных активов | B93: 010 | C93: 000 11400000000000 000 | D93: 35851098 | E93: 37573369.45 | F93: -1722271.45
A94: Доходы от реализации имущества, находящегося в государственной и муниципальной собственности (за исключением имущества автономных учреждений, а также имущества государственных и муниципальных унитарных предприятий, в том числе казенных) | B94: 010 | C94: 014 11402000000000 000 | D94: 34851098 | E94: 36195520.53 | F94: -1344422.53
A95: Доходы от реализации имущества, находящегося в собственности поселений (за исключением имущества муниципальных бюджетных и автономных учреждений, а также имущества муниципальных унитарных предприятий, в том числе казенных), в части реализации основных средств по указанному имуществу | B95: 010 | C95: 014 11402050100000 410 | D95: 34851098 | E95: 36195520.53 | F95: -1344422.53
A96: Доходы от реализации иного имущества, находящегося в собственности поселений (за исключением имущества муниципальных бюджетных и автономных учреждений, а также имущества муниципальных унитарных предприятий, в том числе казенных), в части реализации основных средств по указанному имуществу | B96: 010 | C96: 014 11402053100000 410 | D96: 34851098 | E96: 36195520.53 | F96: -1344422.53
A97: Доходы от продажи земельных участков, находящихся в государственной и муниципальной собственности (за исключением земельных участков автономных учреждений) | B97: 010 | C97: 001 11406000000000 430 | D97: 1000000 | E97: 1377848.92 | F97: -377848.92
A98: Доходы от продажи земельных участков, государственная собственность на которые не разграничена | B98: 010 | C98: 001 11406010000000 430 | D98: 1000000 | E98: 1377848.92 | F98: -377848.92
A99: Доходы от продажи земельных участков, государственная собственность на которые не разграничена и которые расположены в границах поселений | B99: 010 | C99: 001 11406013100000 430 | D99: 1000000 | E99: 1377848.92 | F99: -377848.92
A100: Прочие неналоговые доходы | B100: 010 | C100: 014 11700000000000 000 | D100: 200008 | E100: 197871.52 | F100: 2136.48
A101: Прочие неналоговые доходы | B101: 010 | C101: 014 11705000000000 180 | D101: 200008 | E101: 197871.52 | F101: 2136.48
A102: Прочие неналоговые доходы бюджетов поселений | B102: 010 | C102: 014 11705050100000 180 | D102: 200008 | E102: 197871.52 | F102: 2136.48
A103: БЕЗВОЗМЕЗДНЫЕ ПОСТУПЛЕНИЯ | B103: 010 | C103: 014 20000000000000 000 | D103: 49003105 | E103: 47478164.09 | F103: 1524940.91
A104: Безвозмездные поступления от других бюджетов бюджетной системы Российской Федерации | B104: 010 | C104: 014 20200000000000 000 | D104: 49003105 | E104: 49001105 | F104: 2000
A105: Дотации бюджетам субъектов Российской Федерации и муниципальных образований | B105: 010 | C105: 014 20201000000000 151 | D105: 39259100 | E105: 39259100 | F105: -
A106: Дотации на выравнивание бюджетной обеспеченности | B106: 010 | C106: 014 20201001000000 151 | D106: 39061800 | E106: 39061800 | F106: -
A107: Дотации бюджетам поселений на выравнивание бюджетной обеспеченности | B107: 010 | C107: 014 20201001100000 151 | D107: 39061800 | E107: 39061800 | F107: -
A108: Дотации бюджетам поселений на выравнивание бюджетной обеспеченности (из РФФП за счет средств областного бюджета) | B108: 010 | C108: 014 20201001100001 151 | D108: 26769200 | E108: 26769200 | F108: -
A109: Дотации бюджетам поселений на выравнивание бюджетной обеспеченности (из РФФП за счет средств местного бюджета) | B109: 010 | C109: 014 20201001100002 151 | D109: 12292600 | E109: 12292600 | F109: -
A110: Дотации бюджетам на поддержку мер по обеспечению сбалансированности бюджетов | B110: 010 | C110: 014 20201003000000 151 | D110: 197300 | E110: 197300 | F110: -
A111: Дотации бюджетам поселений на поддержку мер по обеспечению сбалансированности бюджетов | B111: 010 | C111: 014 20201003100000 151 | D111: 197300 | E111: 197300 | F111: -
A112: Субсидии бюджетам субъектов Российской Федерации и муниципальных образований (межбюджетные субсидии) | B112: 010 | C112: 014 20202000000000 151 | D112: 5674788 | E112: 5674788 | F112: -
A113: Субсидии бюджетам на бюджетные инвестиции в объекты капитального строительства государственной собственности субъектов Российской Федерации (объекты капитального строительства собственности муниципальных образований) | B113: 010 | C113: 014 20202077000000 151 | D113: 2738000 | E113: 2738000 | F113: -
A114: Субсидии бюджетам поселений на бюджетные инвестиции в объекты капитального строительства собственности муниципальных образований | B114: 010 | C114: 014 20202077100000 151 | D114: 2738000 | E114: 2738000 | F114: -
A115: Субсидии бюджетам поселений на бюджетные инвестиции в объекты капитального строительства собственности муниципальных образований (газификация)(областной бюджет) | B115: 010 | C115: 014 20202077100001 151 | D115: 2738000 | E115: 2738000 | F115: -
A116: Субсидии бюджетам поселений на осуществление дорожной деятельности в отношении автомобильных дорог общего пользования, а также капитального ремонта и ремонта дворовых территорий многоквартирных домов, проездов к дворовым территориям многоквартирных домов населенных пунктов (областной бюджет) | B116: 010 | C116: 014 20202216100001 151 | D116: 1424368 | E116: 1424368 | F116: -
A117: Прочие субсидии | B117: 010 | C117: 014 20202999000000 151 | D117: 1512420 | E117: 1512420 | F117: =IF(OR(D117="-",E117=D117),"-",D117-IF(E117="-",0,E117)) -> -
A118: Прочие субсидии бюджетам поселений | B118: 010 | C118: 014 20202999100000 151 | D118: 1512420 | E118: 1512420 | F118: -
A119: Субсидии бюджетам поселений на обеспечение выплат стимулирующего характера работникам муниципальных учреждений культуры Ленинградской области в рамках подпрограммы "Обеспечение условий реализации государственной программы" государственной программы Ленинградской области "Развитие культуры в Ленинградской области" (областной бюджет) | B119: 010 | C119: 014 20202999100014 151 | D119: 823200 | E119: 823200 | F119: -
A120: Прочие субсидии бюджетам поселений (субсидии на реализацию областного закона от 14.12.2012 года №95-0З) (областной бюджет) | B120: 010 | C120: 014 20202999100015 151 | D120: 539220 | E120: 539220 | F120: -
A121: Субсидии на поддержку творческих проектов в области культуры и искусства в рамках подпрограммы "Сохранение и развитие народной культуры и самодеятельного творчества" государственной программы Ленинградской области "Развитие культуры в Ленинградской области" (областной бюджет) | B121: 010 | C121: 014 20202999100021 151 | D121: 150000 | E121: 150000 | F121: -
A122: Субвенции бюджетам субъектов Российской Федерации и муниципальных образований | B122: 010 | C122: 014 20203000000000 151 | D122: 2873217 | E122: 2873217 | F122: -
A123: Субвенции бюджетам на осуществление первичного воинского учета на территориях, где отсутствуют военные комиссариаты | B123: 010 | C123: 014 20203015000000 151 | D123: 1198333 | E123: 1198333 | F123: -
A124: Субвенции бюджетам поселений на осуществление первичного воинского учета на территориях, где отсутствуют военные комиссариаты | B124: 010 | C124: 014 20203015100000 151 | D124: 1198333 | E124: 1198333 | F124: -
A125: Субвенции местным бюджетам на выполнение передаваемых полномочий субъектов Российской Федерации | B125: 010 | C125: 014 20203024000000 151 | D125: 1674884 | E125: 1674884 | F125: -
A126: Субвенции бюджетам поселений на выполнение передаваемых полномочий субъектов Российской Федерации | B126: 010 | C126: 014 20203024100000 151 | D126: 1674884 | E126: 1674884 | F126: -
A127: Субвенции бюджетам МО на осуществление ОГП в сфере профилактики безнадзорности и правонарушений несовершеннолетних(обл.б-т) | B127: 010 | C127: 014 20203024100006 151 | D127: 1108586 | E127: 1108586 | F127: -
A128: Субвенции бюджетам поселений на осуществление ОГП в сфере административных правоотношений (обл. б-т) | B128: 010 | C128: 014 20203024100018 151 | D128: 566298 | E128: 566298 | F128: -
A129: Иные межбюджетные трансферты | B129: 010 | C129: 014 20204000000000 151 | D129: 1196000 | E129: 1194000 | F129: 2000
A130: Межбюджетные трансферты, передаваемые бюджетам для компенсации дополнительных расходов, возникших в результате решений, принятых органами власти другого уровня | B130: 010 | C130: 014 20204012000000 151 | D130: 1196000 | E130: 1194000 | F130: 2000
A131: Межбюджетные трансферты, передаваемые бюджетам поселений для компенсации дополнительных расходов, возникших в результате решений, принятых органами власти другого уровня | B131: 010 | C131: 014 20204012100000 151 | D131: 1196000 | E131: 1194000 | F131: 2000
A132: Межбюджетные трансферты, передаваемые бюджетам поселений для компенсации дополнительных расходов, возникших в результате решений, принятых органами власти другого уровня (депутатские средства из резервного фонда Правительства Ленинградской области) (местный бюджет) | B132: 010 | C132: 014 20204012100001 151 | D132: 1196000 | E132: 1194000 | F132: 2000
A133: ВОЗВРАТ ОСТАТКОВ СУБСИДИЙ, СУБВЕНЦИЙ И ИНЫХ МЕЖБЮДЖЕТНЫХ ТРАНСФЕРТОВ, ИМЕЮЩИХ ЦЕЛЕВОЕ НАЗНАЧЕНИЕ, ПРОШЛЫХ ЛЕТ | B133: 010 | C133: 014 21900000000000 000 | D133: - | E133: -1522940.91 | F133: -
A134: Возврат остатков субсидий, субвенций и иных межбюджетных трансфертов, имеющих целевое назначение, прошлых лет из бюджетов поселений | B134: 010 | C134: 014 21905000100000 151 | D134: - | E134: -1522940.91 | F134: -

Sheet Расходы
A2: 2. Расходы бюджета | F2: Форма 0503117 с.2
A4: Наименование показателя | B4: Код строки | C4: Код расхода по бюджетной классификации | D4: Утвержденные бюджетные назначения | E4: Исполнено | F4: Неисполненные назначения
A12: 1 | B12: 2 | C12: 3 | D12: 4 | E12: 5 | F12: 6
A13: Расходы бюджета - всего | B13: 200 | C13: *** 96000000000000 000 | D13: 201509540 | E13: 168386327.5 | F13: =IF(OR(D13="-",E13=D13),"-",D13-IF(E13="-",0,E13)) -> 33123212.48
A14: в том числе:
A15: ОБЩЕГОСУДАРСТВЕННЫЕ ВОПРОСЫ | B15: 200 | C15: 000 0100 0000000 000 000 | D15: 37740919 | E15: 27694393.4 | F15: =IF(OR(D15="-",E15=D15),"-",D15-IF(E15="-",0,E15)) -> 10046525.6
A16: Расходы | B16: 200 | C16: 000 0100 0000000 000 200 | D16: 35851779 | E16: 26558642.59 | F16: 9293136.41
A17: Оплата труда и начисления на выплаты по оплате труда | B17: 200 | C17: 000 0100 0000000 000 210 | D17: 19905497 | E17: 14975701.3 | F17: 4929795.7
A18: Заработная плата | B18: 200 | C18: 000 0100 0000000 000 211 | D18: 15408548 | E18: 11600560.3 | F18: 3807987.7
A19: Прочие выплаты | B19: 200 | C19: 000 0100 0000000 000 212 | D19: 1353.33 | E19: 1353.33 | F19: -
A20: Начисления на выплаты по оплате труда | B20: 200 | C20: 000 0100 0000000 000 213 | D20: 4495595.67 | E20: 3373787.67 | F20: 1121808
A21: Оплата работ, услуг | B21: 200 | C21: 000 0100 0000000 000 220 | D21: 9177022 | E21: 6957984.27 | F21: 2219037.73
A22: Услуги связи | B22: 200 | C22: 000 0100 0000000 000 221 | D22: 262843.11 | E22: 199213.07 | F22: 63630.04
A23: Транспортные услуги | B23: 200 | C23: 000 0100 0000000 000 222 | D23: 195512 | E23: 175026.2 | F23: 20485.8
A24: Коммунальные услуги | B24: 200 | C24: 000 0100 0000000 000 223 | D24: 932618.17 | E24: 826237.68 | F24: 106380.49
A25: Арендная плата за пользование имуществом | B25: 200 | C25: 000 0100 0000000 000 224 | D25: 30720 | E25: 30720 | F25: -
A26: Работы, услуги по содержанию имущества | B26: 200 | C26: 000 0100 0000000 000 225 | D26: 3120961.44 | E26: 2173017.22 | F26: 947944.22
A27: Прочие работы, услуги | B27: 200 | C27: 000 0100 0000000 000 226 | D27: 4634367.28 | E27: 3553770.1 | F27: 1080597.18
A28: Безвозмездные перечисления бюджетам | B28: 200 | C28: 000 0100 0000000 000 250 | D28: 1256026 | E28: 1256026 | F28: -
A29: Перечисления другим бюджетам бюджетной системы Российской Федерации | B29: 200 | C29: 000 0100 0000000 000 251 | D29: 1256026 | E29: 1256026 | F29: -
A30: Прочие расходы | B30: 200 | C30: 000 0100 0000000 000 290 | D30: 5513234 | E30: 3368931.02 | F30: 2144302.98
A31: Поступление нефинансовых активов | B31: 200 | C31: 000 0100 0000000 000 300 | D31: 1889140 | E31: 1135750.81 | F31: 753389.19
A32: Увеличение стоимости основных средств | B32: 200 | C32: 000 0100 0000000 000 310 | D32: 326878.38 | E32: 223230.57 | F32: 103647.81
A33: Увеличение стоимости материальных запасов | B33: 200 | C33: 000 0100 0000000 000 340 | D33: 1562261.62 | E33: 912520.24 | F33: 649741.38
A34: Функционирование Правительства Российской Федерации, высших исполнительных органов государственной власти субъектов Российской Федерации, местных администраций | B34: 200 | C34: 000 0104 0000000 000 000 | D34: 26252242 | E34: 19901957.06 | F34: 6350284.94
A35: Расходы | B35: 200 | C35: 000 0104 0000000 000 200 | D35: 25467802 | E35: 19281225.37 | F35: 6186576.63
A36: Оплата труда и начисления на выплаты по оплате труда | B36: 200 | C36: 000 0104 0000000 000 210 | D36: 19905497 | E36: 14975701.3 | F36: 4929795.7
A37: Заработная плата | B37: 200 | C37: 000 0104 0000000 000 211 | D37: 15408548 | E37: 11600560.3 | F37: 3807987.7
A38: Прочие выплаты | B38: 200 | C38: 000 0104 0000000 000 212 | D38: 1353.33 | E38: 1353.33 | F38: -
A39: Начисления на выплаты по оплате труда | B39: 200 | C39: 000 0104 0000000 000 213 | D39: 4495595.67 | E39: 3373787.67 | F39: 1121808
A40: Оплата работ, услуг | B40: 200 | C40: 000 0104 0000000 000 220 | D40: 4555447 | E40: 3343007.98 | F40: 1212439.02
A41: Услуги связи | B41: 200 | C41: 000 0104 0000000 000 221 | D41: 252893.55 | E41: 189263.51 | F41: 63630.04
A42: Транспортные услуги | B42: 200 | C42: 000 0104 0000000 000 222 | D42: 22212 | E42: 3736 | F42: 18476
A43: Коммунальные услуги | B43: 200 | C43: 000 0104 0000000 000 223 | D43: 574589.21 | E43: 473871.54 | F43: 100717.67
A44: Работы, услуги по содержанию имущества | B44: 200 | C44: 000 0104 0000000 000 225 | D44: 1752300 | E44: 804355.78 | F44: 947944.22
A45: Прочие работы, услуги | B45: 200 | C45: 000 0104 0000000 000 226 | D45: 1953452.24 | E45: 1871781.15 | F45: 81671.09
A46: Безвозмездные перечисления бюджетам | B46: 200 | C46: 000 0104 0000000 000 250 | D46: 856858 | E46: 856858 | F46: -
A47: Перечисления другим бюджетам бюджетной системы Российской Федерации | B47: 200 | C47: 000 0104 0000000 000 251 | D47: 856858 | E47: 856858 | F47: -
A48: Прочие расходы | B48: 200 | C48: 000 0104 0000000 000 290 | D48: 150000 | E48: 105658.09 | F48: 44341.91
A49: Поступление нефинансовых активов | B49: 200 | C49: 000 0104 0000000 000 300 | D49: 784440 | E49: 620731.69 | F49: 163708.31
A50: Увеличение стоимости основных средств | B50: 200 | C50: 000 0104 0000000 000 310 | D50: 197156.38 | E50: 93508.57 | F50: 103647.81
A51: Увеличение стоимости материальных запасов | B51: 200 | C51: 000 0104 0000000 000 340 | D51: 587283.62 | E51: 527223.12 | F51: 60060.5
A52: Обеспечение деятельности финансовых, налоговых и таможенных органов и органов финансового (финансово-бюджетного) надзора | B52: 200 | C52: 000 0106 0000000 000 000 | D52: 399168 | E52: 399168 | F52: -
A53: Расходы | B53: 200 | C53: 000 0106 0000000 000 200 | D53: 399168 | E53: 399168 | F53: -
A54: Безвозмездные перечисления бюджетам | B54: 200 | C54: 000 0106 0000000 000 250 | D54: 399168 | E54: 399168 | F54: -
A55: Перечисления другим бюджетам бюджетной системы Российской Федерации | B55: 200 | C55: 000 0106 0000000 000 251 | D55: 399168 | E55: 399168 | F55: -
A56: Обеспечение проведения выборов и референдумов | B56: 200 | C56: 000 0107 0000000 000 000 | D56: 714335 | E56: 623145.28 | F56: 91189.72
A57: Расходы | B57: 200 | C57: 000 0107 0000000 000 200 | D57: 714335 | E57: 623145.28 | F57: 91189.72
A58: Прочие расходы | B58: 200 | C58: 000 0107 0000000 000 290 | D58: 714335 | E58: 623145.28 | F58: 91189.72
A59: Резервные фонды | B59: 200 | C59: 000 0111 0000000 000 000 | D59: 2000000 | E59: - | F59: 2000000
A60: Расходы | B60: 200 | C60: 000 0111 0000000 000 200 | D60: 2000000 | E60: - | F60: 2000000
A61: Прочие расходы | B61: 200 | C61: 000 0111 0000000 000 290 | D61: 2000000 | E61: - | F61: 2000000
A62: Другие общегосударственные вопросы | B62: 200 | C62: 000 0113 0000000 000 000 | D62: 8375174 | E62: 6770123.06 | F62: 1605050.94
A63: Расходы | B63: 200 | C63: 000 0113 0000000 000 200 | D63: 7270474 | E63: 6255103.94 | F63: 1015370.06
A64: Оплата работ, услуг | B64: 200 | C64: 000 0113 0000000 000 220 | D64: 4621575 | E64: 3614976.29 | F64: 1006598.71
A65: Услуги связи | B65: 200 | C65: 000 0113 0000000 000 221 | D65: 9949.56 | E65: 9949.56 | F65: -
A66: Транспортные услуги | B66: 200 | C66: 000 0113 0000000 000 222 | D66: 173300 | E66: 171290.2 | F66: 2009.8
A67: Коммунальные услуги | B67: 200 | C67: 000 0113 0000000 000 223 | D67: 358028.96 | E67: 352366.14 | F67: 5662.82
A68: Арендная плата за пользование имуществом | B68: 200 | C68: 000 0113 0000000 000 224 | D68: 30720 | E68: 30720 | F68: -
A69: Работы, услуги по содержанию имущества | B69: 200 | C69: 000 0113 0000000 000 225 | D69: 1368661.44 | E69: 1368661.44 | F69: -
A70: Прочие работы, услуги | B70: 200 | C70: 000 0113 0000000 000 226 | D70: 2680915.04 | E70: 1681988.95 | F70: 998926.09
A71: Прочие расходы | B71: 200 | C71: 000 0113 0000000 000 290 | D71: 2648899 | E71: 2640127.65 | F71: 8771.35
A72: Поступление нефинансовых активов | B72: 200 | C72: 000 0113 0000000 000 300 | D72: 1104700 | E72: 515019.12 | F72: 589680.88
A73: Увеличение стоимости основных средств | B73: 200 | C73: 000 0113 0000000 000 310 | D73: 129722 | E73: 129722 | F73: -
A74: Увеличение стоимости материальных запасов | B74: 200 | C74: 000 0113 0000000 000 340 | D74: 974978 | E74: 385297.12 | F74: 589680.88
A75: НАЦИОНАЛЬНАЯ ОБОРОНА | B75: 200 | C75: 000 0200 0000000 000 000 | D75: 1198333 | E75: 1198333 | F75: -
A76: Расходы | B76: 200 | C76: 000 0200 0000000 000 200 | D76: 1167621 | E76: 1167621 | F76: -
A77: Оплата труда и начисления на выплаты по оплате труда | B77: 200 | C77: 000 0200 0000000 000 210 | D77: 1124463.5 | E77: 1124463.5 | F77: -
A78: Заработная плата | B78: 200 | C78: 000 0200 0000000 000 211 | D78: 849574 | E78: 849574 | F78: -
A79: Начисления на выплаты по оплате труда | B79: 200 | C79: 000 0200 0000000 000 213 | D79: 274889.5 | E79: 274889.5 | F79: =IF(OR(D79="-",E79=D79),"-",D79-IF(E79="-",0,E79)) -> -
A80: Оплата работ, услуг | B80: 200 | C80: 000 0200 0000000 000 220 | D80: 43157.5 | E80: 43157.5 | F80: -
A81: Услуги связи | B81: 200 | C81: 000 0200 0000000 000 221 | D81: 5327.5 | E81: 5327.5 | F81: -
A82: Транспортные услуги | B82: 200 | C82: 000 0200 0000000 000 222 | D82: 13410 | E82: 13410 | F82: -
A83: Коммунальные услуги | B83: 200 | C83: 000 0200 0000000 000 223 | D83: 24420 | E83: 24420 | F83: -
A84: Поступление нефинансовых активов | B84: 200 | C84: 000 0200 0000000 000 300 | D84: 30712 | E84: 30712 | F84: -
A85: Увеличение стоимости основных средств | B85: 200 | C85: 000 0200 0000000 000 310 | D85: 7700 | E85: 7700 | F85: -
A86: Увеличение стоимости материальных запасов | B86: 200 | C86: 000 0200 0000000 000 340 | D86: 23012 | E86: 23012 | F86: -
A87: Мобилизационная и вневойсковая подготовка | B87: 200 | C87: 000 0203 0000000 000 000 | D87: 1198333 | E87: 1198333 | F87: -
A88: Расходы | B88: 200 | C88: 000 0203 0000000 000 200 | D88: 1167621 | E88: 1167621 | F88: -
A89: Оплата труда и начисления на выплаты по оплате труда | B89: 200 | C89: 000 0203 0000000 000 210 | D89: 1124463.5 | E89: 1124463.5 | F89: -
A90: Заработная плата | B90: 200 | C90: 000 0203 0000000 000 211 | D90: 849574 | E90: 849574 | F90: -
A91: Начисления на выплаты по оплате труда | B91: 200 | C91: 000 0203 0000000 000 213 | D91: 274889.5 | E91: 274889.5 | F91: -
A92: Оплата работ, услуг | B92: 200 | C92: 000 0203 0000000 000 220 | D92: 43157.5 | E92: 43157.5 | F92: -
A93: Услуги связи | B93: 200 | C93: 000 0203 0000000 000 221 | D93: 5327.5 | E93: 5327.5 | F93: -
A94: Транспортные услуги | B94: 200 | C94: 000 0203 0000000 000 222 | D94: 13410 | E94: 13410 | F94: -
A95: Коммунальные услуги | B95: 200 | C95: 000 0203 0000000 000 223 | D95: 24420 | E95: 24420 | F95: -
A96: Поступление нефинансовых активов | B96: 200 | C96: 000 0203 0000000 000 300 | D96: 30712 | E96: 30712 | F96: -
A97: Увеличение стоимости основных средств | B97: 200 | C97: 000 0203 0000000 000 310 | D97: 7700 | E97: 7700 | F97: -
A98: Увеличение стоимости материальных запасов | B98: 200 | C98: 000 0203 0000000 000 340 | D98: 23012 | E98: 23012 | F98: -
A99: НАЦИОНАЛЬНАЯ БЕЗОПАСНОСТЬ И ПРАВООХРАНИТЕЛЬНАЯ ДЕЯТЕЛЬНОСТЬ | B99: 200 | C99: 000 0300 0000000 000 000 | D99: 993000 | E99: 296775.47 | F99: 696224.53
A100: Расходы | B100: 200 | C100: 000 0300 0000000 000 200 | D100: 845000 | E100: 284390.47 | F100: 560609.53
A101: Оплата работ, услуг | B101: 200 | C101: 000 0300 0000000 000 220 | D101: 775000 | E101: 284390.47 | F101: 490609.53
A102: Работы, услуги по содержанию имущества | B102: 200 | C102: 000 0300 0000000 000 225 | D102: 578000 | E102: 190790.47 | F102: 387209.53
A103: Прочие работы, услуги | B103: 200 | C103: 000 0300 0000000 000 226 | D103: 197000 | E103: 93600 | F103: 103400
A104: Прочие расходы | B104: 200 | C104: 000 0300 0000000 000 290 | D104: 70000 | E104: - | F104: 70000
A105: Поступление нефинансовых активов | B105: 200 | C105: 000 0300 0000000 000 300 | D105: 148000 | E105: 12385 | F105: 135615
A106: Увеличение стоимости основных средств | B106: 200 | C106: 000 0300 0000000 000 310 | D106: 30000 | E106: 6305 | F106: 23695
A107: Увеличение стоимости материальных запасов | B107: 200 | C107: 000 0300 0000000 000 340 | D107: 118000 | E107: 6080 | F107: 111920
A108: Защита населения и территории от чрезвычайных ситуаций природного и техногенного характера, гражданская оборона | B108: 200 | C108: 000 0309 0000000 000 000 | D108: 993000 | E108: 296775.47 | F108: 696224.53
A109: Расходы | B109: 200 | C109: 000 0309 0000000 000 200 | D109: 845000 | E109: 284390.47 | F109: 560609.53
A110: Оплата работ, услуг | B110: 200 | C110: 000 0309 0000000 000 220 | D110: 775000 | E110: 284390.47 | F110: 490609.53
A111: Работы, услуги по содержанию имущества | B111: 200 | C111: 000 0309 0000000 000 225 | D111: 578000 | E111: 190790.47 | F111: 387209.53
A112: Прочие работы, услуги | B112: 200 | C112: 000 0309 0000000 000 226 | D112: 197000 | E112: 93600 | F112: 103400
A113: Прочие расходы | B113: 200 | C113: 000 0309 0000000 000 290 | D113: 70000 | E113: - | F113: 70000
A114: Поступление нефинансовых активов | B114: 200 | C114: 000 0309 0000000 000 300 | D114: 148000 | E114: 12385 | F114: 135615
A115: Увеличение стоимости основных средств | B115: 200 | C115: 000 0309 0000000 000 310 | D115: 30000 | E115: 6305 | F115: 23695
A116: Увеличение стоимости материальных запасов | B116: 200 | C116: 000 0309 0000000 000 340 | D116: 118000 | E116: 6080 | F116: 111920
A117: НАЦИОНАЛЬНАЯ ЭКОНОМИКА | B117: 200 | C117: 000 0400 0000000 000 000 | D117: 55729853 | E117: 49396153.92 | F117: 6333699.08
A118: Расходы | B118: 200 | C118: 000 0400 0000000 000 200 | D118: 55729853 | E118: 49396153.92 | F118: 6333699.08
A119: Оплата работ, услуг | B119: 200 | C119: 000 0400 0000000 000 220 | D119: 55620853 | E119: 49287153.92 | F119: 6333699.08
A120: Транспортные услуги | B120: 200 | C120: 000 0400 0000000 000 222 | D120: 400000 | E120: 308250 | F120: 91750
A121: Работы, услуги по содержанию имущества | B121: 200 | C121: 000 0400 0000000 000 225 | D121: 52373953 | E121: 47873522.3 | F121: 4500430.7
A122: Прочие работы, услуги | B122: 200 | C122: 000 0400 0000000 000 226 | D122: 2846900 | E122: 1105381.62 | F122: 1741518.38
A123: Безвозмездные перечисления организациям | B123: 200 | C123: 000 0400 0000000 000 240 | D123: 50000 | E123: 50000 | F123: -
A124: Безвозмездные перечисления организациям, за исключением государственных и муниципальных организаций | B124: 200 | C124: 000 0400 0000000 000 242 | D124: 50000 | E124: 50000 | F124: -
A125: Прочие расходы | B125: 200 | C125: 000 0400 0000000 000 290 | D125: 59000 | E125: 59000 | F125: -
A126: Дорожное хозяйство (дорожные фонды) | B126: 200 | C126: 000 0409 0000000 000 000 | D126: 54184853 | E126: 48240522.3 | F126: 5944330.7
A127: Расходы | B127: 200 | C127: 000 0409 0000000 000 200 | D127: 54184853 | E127: 48240522.3 | F127: 5944330.7
A128: Оплата работ, услуг | B128: 200 | C128: 000 0409 0000000 000 220 | D128: 54184853 | E128: 48240522.3 | F128: 5944330.7
A129: Работы, услуги по содержанию имущества | B129: 200 | C129: 000 0409 0000000 000 225 | D129: 52373953 | E129: 47873522.3 | F129: 4500430.7
A130: Прочие работы, услуги | B130: 200 | C130: 000 0409 0000000 000 226 | D130: 1810900 | E130: 367000 | F130: 1443900
A131: Другие вопросы в области национальной экономики | B131: 200 | C131: 000 0412 0000000 000 000 | D131: 1545000 | E131: 1155631.62 | F131: 389368.38
A132: Расходы | B132: 200 | C132: 000 0412 0000000 000 200 | D132: 1545000 | E132: 1155631.62 | F132: 389368.38
A133: Оплата работ, услуг | B133: 200 | C133: 000 0412 0000000 000 220 | D133: 1436000 | E133: 1046631.62 | F133: 389368.38
A134: Транспортные услуги | B134: 200 | C134: 000 0412 0000000 000 222 | D134: 400000 | E134: 308250 | F134: 91750
A135: Прочие работы, услуги | B135: 200 | C135: 000 0412 0000000 000 226 | D135: 1036000 | E135: 738381.62 | F135: 297618.38
A136: Безвозмездные перечисления организациям | B136: 200 | C136: 000 0412 0000000 000 240 | D136: 50000 | E136: 50000 | F136: -
A137: Безвозмездные перечисления организациям, за исключением государственных и муниципальных организаций | B137: 200 | C137: 000 0412 0000000 000 242 | D137: 50000 | E137: 50000 | F137: -
A138: Прочие расходы | B138: 200 | C138: 000 0412 0000000 000 290 | D138: 59000 | E138: 59000 | F138: -
A139: ЖИЛИЩНО-КОММУНАЛЬНОЕ ХОЗЯЙСТВО | B139: 200 | C139: 000 0500 0000000 000 000 | D139: 64372352 | E139: 52320365.65 | F139: 12051986.35
A140: Расходы | B140: 200 | C140: 000 0500 0000000 000 200 | D140: 54755837.78 | E140: 43805029.64 | F140: 10950808.14
A141: Оплата работ, услуг | B141: 200 | C141: 000 0500 0000000 000 220 | D141: 52961142.78 | E141: 42187859.02 | F141: 10773283.76
A142: Транспортные услуги | B142: 200 | C142: 000 0500 0000000 000 222 | D142: 5947.2 | E142: 5947.2 | F142: -
A143: Коммунальные услуги | B143: 200 | C143: 000 0500 0000000 000 223 | D143: 4874613 | E143: 4077629.95 | F143: =IF(OR(D143="-",E143=D143),"-",D143-IF(E143="-",0,E143)) -> 796983.05
A144: Работы, услуги по содержанию имущества | B144: 200 | C144: 000 0500 0000000 000 225 | D144: 42103403.5 | E144: 35021069.5 | F144: 7082334
A145: Прочие работы, услуги | B145: 200 | C145: 000 0500 0000000 000 226 | D145: 5977179.08 | E145: 3083212.37 | F145: 2893966.71
A146: Безвозмездные перечисления организациям | B146: 200 | C146: 000 0500 0000000 000 240 | D146: 1400000 | E146: 1227916.63 | F146: 172083.37
A147: Безвозмездные перечисления организациям, за исключением государственных и муниципальных организаций | B147: 200 | C147: 000 0500 0000000 000 242 | D147: 1400000 | E147: 1227916.63 | F147: 172083.37
A148: Прочие расходы | B148: 200 | C148: 000 0500 0000000 000 290 | D148: 394695 | E148: 389253.99 | F148: 5441.01
A149: Поступление нефинансовых активов | B149: 200 | C149: 000 0500 0000000 000 300 | D149: 9616514.22 | E149: 8515336.01 | F149: 1101178.21
A150: Увеличение стоимости основных средств | B150: 200 | C150: 000 0500 0000000 000 310 | D150: 9260833 | E150: 8491320.65 | F150: 769512.35
A151: Увеличение стоимости материальных запасов | B151: 200 | C151: 000 0500 0000000 000 340 | D151: 355681.22 | E151: 24015.36 | F151: 331665.86
A152: Жилищное хозяйство | B152: 200 | C152: 000 0501 0000000 000 000 | D152: 10307633 | E152: 4277996.95 | F152: 6029636.05
A153: Расходы | B153: 200 | C153: 000 0501 0000000 000 200 | D153: 10307633 | E153: 4277996.95 | F153: 6029636.05
A154: Оплата работ, услуг | B154: 200 | C154: 000 0501 0000000 000 220 | D154: 10268875 | E154: 4239239.59 | F154: 6029635.41
A155: Коммунальные услуги | B155: 200 | C155: 000 0501 0000000 000 223 | D155: 251730 | E155: - | F155: 251730
A156: Работы, услуги по содержанию имущества | B156: 200 | C156: 000 0501 0000000 000 225 | D156: 9667145 | E156: 4162539.59 | F156: 5504605.41
A157: Прочие работы, услуги | B157: 200 | C157: 000 0501 0000000 000 226 | D157: 350000 | E157: 76700 | F157: 273300
A158: Прочие расходы | B158: 200 | C158: 000 0501 0000000 000 290 | D158: 38758 | E158: 38757.36 | F158: 0.64
A159: Коммунальное хозяйство | B159: 200 | C159: 000 0502 0000000 000 000 | D159: 17977774 | E159: 15430159.84 | F159: 2547614.16
A160: Расходы | B160: 200 | C160: 000 0502 0000000 000 200 | D160: 9402231.58 | E160: 7625639.19 | F160: 1776592.39
A161: Оплата работ, услуг | B161: 200 | C161: 000 0502 0000000 000 220 | D161: 8002231.58 | E161: 6397722.56 | F161: 1604509.02
A162: Работы, услуги по содержанию имущества | B162: 200 | C162: 000 0502 0000000 000 225 | D162: 6094746.5 | E162: 4566239.4 | F162: 1528507.1
A163: Прочие работы, услуги | B163: 200 | C163: 000 0502 0000000 000 226 | D163: 1907485.08 | E163: 1831483.16 | F163: 76001.92
A164: Безвозмездные перечисления организациям | B164: 200 | C164: 000 0502 0000000 000 240 | D164: 1400000 | E164: 1227916.63 | F164: 172083.37
A165: Безвозмездные перечисления организациям, за исключением государственных и муниципальных организаций | B165: 200 | C165: 000 0502 0000000 000 242 | D165: 1400000 | E165: 1227916.63 | F165: 172083.37
A166: Поступление нефинансовых активов | B166: 200 | C166: 000 0502 0000000 000 300 | D166: 8575542.42 | E166: 7804520.65 | F166: 771021.77
A167: Увеличение стоимости основных средств | B167: 200 | C167: 000 0502 0000000 000 310 | D167: 8574033 | E167: 7804520.65 | F167: 769512.35
A168: Увеличение стоимости материальных запасов | B168: 200 | C168: 000 0502 0000000 000 340 | D168: 1509.42 | E168: - | F168: 1509.42
A169: Благоустройство | B169: 200 | C169: 000 0503 0000000 000 000 | D169: 36086945 | E169: 32612208.86 | F169: 3474736.14
A170: Расходы | B170: 200 | C170: 000 0503 0000000 000 200 | D170: 35045973.2 | E170: 31901393.5 | F170: 3144579.7
A171: Оплата работ, услуг | B171: 200 | C171: 000 0503 0000000 000 220 | D171: 34690036.2 | E171: 31550896.87 | F171: 3139139.33
A172: Транспортные услуги | B172: 200 | C172: 000 0503 0000000 000 222 | D172: 5947.2 | E172: 5947.2 | F172: -
A173: Коммунальные услуги | B173: 200 | C173: 000 0503 0000000 000 223 | D173: 4622883 | E173: 4077629.95 | F173: 545253.05
A174: Работы, услуги по содержанию имущества | B174: 200 | C174: 000 0503 0000000 000 225 | D174: 26341512 | E174: 26292290.51 | F174: 49221.49
A175: Прочие работы, услуги | B175: 200 | C175: 000 0503 0000000 000 226 | D175: 3719694 | E175: 1175029.21 | F175: 2544664.79
A176: Прочие расходы | B176: 200 | C176: 000 0503 0000000 000 290 | D176: 355937 | E176: 350496.63 | F176: 5440.37
A177: Поступление нефинансовых активов | B177: 200 | C177: 000 0503 0000000 000 300 | D177: 1040971.8 | E177: 710815.36 | F177: 330156.44
A178: Увеличение стоимости основных средств | B178: 200 | C178: 000 0503 0000000 000 310 | D178: 686800 | E178: 686800 | F178: -
A179: Увеличение стоимости материальных запасов | B179: 200 | C179: 000 0503 0000000 000 340 | D179: 354171.8 | E179: 24015.36 | F179: 330156.44
A180: ОБРАЗОВАНИЕ | B180: 200 | C180: 000 0700 0000000 000 000 | D180: 1358000 | E180: 1307000.75 | F180: 50999.25
A181: Расходы | B181: 200 | C181: 000 0700 0000000 000 200 | D181: 1033137 | E181: 995350.81 | F181: 37786.19
A182: Оплата работ, услуг | B182: 200 | C182: 000 0700 0000000 000 220 | D182: 694080 | E182: 658983.87 | F182: 35096.13
A183: Транспортные услуги | B183: 200 | C183: 000 0700 0000000 000 222 | D183: 235600 | E183: 224099.87 | F183: 11500.13
A184: Прочие работы, услуги | B184: 200 | C184: 000 0700 0000000 000 226 | D184: 458480 | E184: 434884 | F184: 23596
A185: Прочие расходы | B185: 200 | C185: 000 0700 0000000 000 290 | D185: 339057 | E185: 336366.94 | F185: 2690.06
A186: Поступление нефинансовых активов | B186: 200 | C186: 000 0700 0000000 000 300 | D186: 324863 | E186: 311649.94 | F186: 13213.06
A187: Увеличение стоимости основных средств | B187: 200 | C187: 000 0700 0000000 000 310 | D187: 160513 | E187: 155243 | F187: 5270
A188: Увеличение стоимости материальных запасов | B188: 200 | C188: 000 0700 0000000 000 340 | D188: 164350 | E188: 156406.94 | F188: 7943.06
A189: Молодежная политика и оздоровление детей | B189: 200 | C189: 000 0707 0000000 000 000 | D189: 1358000 | E189: 1307000.75 | F189: 50999.25
A190: Расходы | B190: 200 | C190: 000 0707 0000000 000 200 | D190: 1033137 | E190: 995350.81 | F190: 37786.19
A191: Оплата работ, услуг | B191: 200 | C191: 000 0707 0000000 000 220 | D191: 694080 | E191: 658983.87 | F191: 35096.13
A192: Транспортные услуги | B192: 200 | C192: 000 0707 0000000 000 222 | D192: 235600 | E192: 224099.87 | F192: 11500.13
A193: Прочие работы, услуги | B193: 200 | C193: 000 0707 0000000 000 226 | D193: 458480 | E193: 434884 | F193: 23596
A194: Прочие расходы | B194: 200 | C194: 000 0707 0000000 000 290 | D194: 339057 | E194: 336366.94 | F194: 2690.06
A195: Поступление нефинансовых активов | B195: 200 | C195: 000 0707 0000000 000 300 | D195: 324863 | E195: 311649.94 | F195: 13213.06
A196: Увеличение стоимости основных средств | B196: 200 | C196: 000 0707 0000000 000 310 | D196: 160513 | E196: 155243 | F196: 5270
A197: Увеличение стоимости материальных запасов | B197: 200 | C197: 000 0707 0000000 000 340 | D197: 164350 | E197: 156406.94 | F197: 7943.06
A198: КУЛЬТУРА, КИНЕМАТОГРАФИЯ | B198: 200 | C198: 000 0800 0000000 000 000 | D198: 21091283 | E198: 20088937.47 | F198: 1002345.53
A199: Расходы | B199: 200 | C199: 000 0800 0000000 000 200 | D199: 20094785.25 | E199: 19177911.41 | F199: 916873.84
A200: Оплата труда и начисления на выплаты по оплате труда | B200: 200 | C200: 000 0800 0000000 000 210 | D200: 12489824 | E200: 12026111.41 | F200: 463712.59
A201: Заработная плата | B201: 200 | C201: 000 0800 0000000 000 211 | D201: 9590250 | E201: 9242575.81 | F201: 347674.19
A202: Начисления на выплаты по оплате труда | B202: 200 | C202: 000 0800 0000000 000 213 | D202: 2899574 | E202: 2783535.6 | F202: 116038.4
A203: Оплата работ, услуг | B203: 200 | C203: 000 0800 0000000 000 220 | D203: 7476475.25 | E203: 7075317.93 | F203: 401157.32
A204: Услуги связи | B204: 200 | C204: 000 0800 0000000 000 221 | D204: 55484 | E204: 49206.41 | F204: 6277.59
A205: Транспортные услуги | B205: 200 | C205: 000 0800 0000000 000 222 | D205: 264639.91 | E205: 259896.31 | F205: 4743.6
A206: Коммунальные услуги | B206: 200 | C206: 000 0800 0000000 000 223 | D206: 1334729.89 | E206: 1186030.41 | F206: 148699.48
A207: Работы, услуги по содержанию имущества | B207: 200 | C207: 000 0800 0000000 000 225 | D207: 3419880.34 | E207: 3343229.04 | F207: =IF(OR(D207="-",E207=D207),"-",D207-IF(E207="-",0,E207)) -> 76651.3
A208: Прочие работы, услуги | B208: 200 | C208: 000 0800 0000000 000 226 | D208: 2401741.11 | E208: 2236955.76 | F208: 164785.35
A209: Прочие расходы | B209: 200 | C209: 000 0800 0000000 000 290 | D209: 128486 | E209: 76482.07 | F209: 52003.93
... 78 more rows

Sheet Источники
A1: Форма 0503117 с.3
A2: 3. Источники финансирования дефицита бюджета
A4: Наименование показателя | B4: Код строки | C4: Код источника финансирования дефицита бюджета по бюджетной классификации | D4: Утвержденные бюджетные назначения | E4: Исполнено | F4: Неисполненные назначения
A11: 1 | B11: 2 | C11: 3 | D11: 4 | E11: 5 | F11: 6
A12: Источники финансирования дефицита бюджета - всего | B12: 500 | C12: *** 90000000000000 000 | D12: 50428204 | E12: =E19+E21 -> 22392586.79 | F12: =D12-E12 -> 28035617.21
A13: в том числе:
A14: источники внутреннего финансирования бюджета | B14: 520 | C14: *** 01000000000000 000 | D14: - | E14: - | F14: -
A15: источники внешнего финансирования бюджета | B15: 620 | C15: *** 02000000000000 000 | D15: - | E15: - | F15: -
A16: Изменение остатков средств | B16: 700 | C16: *** 01000000000000 000 | D16: 50428204 | E16: 22392586.79 | F16: 28035617.21
A17: Изменение остатков средств на счетах по учету средств бюджета | B17: 700 | C17: *** 01050000000000 000 | D17: 50428204 | E17: 22392586.79 | F17: 28035617.21
A18: Изменение иных финансовых активов за счет средств, размещенных в депозиты в валюте Российской Федерации и иностранной валюте в кредитных организациях | B18: 700 | C18: *** 01060000000000 000 | D18: - | E18: - | F18: -
A19: увеличение остатков средств | B19: 710 | C19: 014 01050000000000 500 | D19: -151081336 | E19: -150418340.7 | F19: x
A20: Увеличение прочих остатков денежных средств бюджетов поселений | B20: 710 | C20: 014 01050201100000 510 | D20: -151081336 | E20: -150418340.7 | F20: x
A21: уменьшение остатков средств | B21: 720 | C21: 014 01050000000000 600 | D21: 201509540 | E21: 172810927.5 | F21: x
A22: Уменьшение прочих остатков денежных средств бюджетов поселений | B22: 720 | C22: 014 01050201100000 610 | D22: 201509540 | E22: 172810927.5 | F22: x
A29: 20 января 2015 г.
